Cogmind - Beta 14 @@@ ROGUE MODE // 2024.08.07 @ 23:51:01 Player: celerysam Result: Destroyed by G-47 Trooper with Particle Gun Performance ------------- Evolutions (2) 1000 Regions Visited (5) 1000 Robots Destroyed (17) 85 Value Destroyed (467) 467 Prototype IDs (1) 20 Alien Tech Used (0) 0 Bonus (237) 237 TOTAL SCORE: 2809 Bonus ------- Pacifist 200 High Alert Combat Kills 37 Cogmind --------- Core Integrity 0/550 Matter 300/300 Energy 99/100 System Corruption 2% Temperature Cool (9) Movement Core (150) Ox2 Location -8/Materials Parts ------- > --- POWER (2) -------- (None) > --- PROPULSION (4) --- (None) > --- UTILITY (3) ------ Small Storage Unit > --- WEAPON (2) ------- Axe > --- INVENTORY (8) ---- Light Treads Carbon-fiber Leg Carbon-fiber Leg Improved Hover Unit Advanced Beam Rifle Datajack Improved Datajack Heavy Hammer Peak State ------------ > --- POWER ------------ Nuclear Core > --- PROPULSION ------- Aluminum Leg Aluminum Leg Improved Aluminum Leg VSS Leg > --- UTILITY ---------- Small Storage Unit Reaction Control System Hacking Suite > --- WEAPON ----------- Advanced Beam Rifle Axe > --- INVENTORY -------- Light Treads Improved Hover Unit Shock Bomb Launcher Datajack Improved Datajack Heavy Hammer [Rating: 25] Favorites ----------- Power Ion Engine Engine Ion Engine Power Core Nuclear Core Propulsion Wheel Leg Aluminum Leg Wheel Wheel Utility Small Storage Unit Device Seismic Detector Storage Small Storage Unit Hackware Hacking Suite Weapon Medium Laser Energy Gun Medium Laser Ballistic Gun Light Assault Rifle Launcher Grenade Launcher Impact Weapon Heavy Hammer Slashing Weapon Axe Special Melee Weapon Improved Datajack Build | -11 -10 -10 -9 -9 -8 ------- Run | Yrd Mat Min Mat Min Mat Slots Evolved 4 | . . . 2 . 2 Power 1 | . . . . . 1 Propulsion 2 | . . . 2 . . Utility 1 | . . . . . 1 Weapon . | . . . . . . Parts Attached 25 | 6 1 . 5 . 13 Power 3 | 1 . . . . 2 Engine 2 | 1 . . . . 1 Core 1 | . . . . . 1 Reactor . | . . . . . . Propulsion 10 | 2 . . 4 . 4 Treads . | . . . . . . Leg 6 | 2 . . . . 4 Wheel 4 | . . . 4 . . Hover . | . . . . . . Flight . | . . . . . . Utility 4 | 1 1 . . . 2 Device 2 | . 1 . . . 1 Storage 1 | 1 . . . . . Processor . | . . . . . . Hackware 1 | . . . . . 1 Protection . | . . . . . . Artifact . | . . . . . . Weapon 8 | 2 . . 1 . 5 Energy Gun 2 | 1 . . . . 1 Energy Cannon . | . . . . . . Ballistic Gun 1 | 1 . . . . . Ballistic Cannon . | . . . . . . Launcher 2 | . . . 1 . 1 Special Weapon . | . . . . . . Impact Weapon 1 | . . . . . 1 Slashing Weapon 1 | . . . . . 1 Piercing Weapon . | . . . . . . Special Melee Weapon 1 | . . . . . 1 Unidentified Prototypes 1 | . . . . . 1 Parts Lost 16 | . . . . . 16 Power 2 | . . . . . 2 Propulsion 8 | . . . . . 8 Utility 3 | . . . . . 3 Weapon 3 | . . . . . 3 Highest Loss Streak 8 | . . . . . 8 To Critical Strikes . | . . . . . . Average Slot Usage (%) 89 | . 87 100 98 100 80 Engine 8 | . 14 14 11 11 5 Core 2 | . . . . . 4 Leg 13 | . 28 28 2 . 13 Wheel 19 | . . . 40 44 17 Device 8 | . 2 14 11 11 6 Storage 10 | . 14 14 11 11 9 Hackware 4 | . . . . . 8 Energy Gun 9 | . 14 14 11 11 6 Ballistic Gun 4 | . 14 14 8 . . Launcher 4 | . . . 2 11 4 Slashing Weapon 1 | . . . . . 2 Peak Build Rating 25 | 6 7 7 9 10 25 Average Rating 11 | 4 6 7 8 9 15 On Entrance 6 | . 6 7 7 9 10 Naked Turns . | . . . . . . Heaviest Build 21 | 13 14 14 16 16 21 Greatest Support 45 | 20 20 20 40 40 45 Greatest Overweight (x) 2 | 2 . . . . 2 Average Overweight (x) . | . . . . . . Largest Inventory Capacity 8 | 8 8 8 8 8 8 Average Capacity 7 | 7 8 8 8 8 8 Most Carried 8 | 6 8 8 7 8 8 Average Carried 7 | 3 7 8 6 7 7 Final Capacity 8 | 8 8 8 8 8 8 Final Carried 8 | 6 8 8 7 8 8 Class Distribution -------------------- 100% | Mutant Dominant Class ---------------- Mutant | -10/Materials Mutant | -10/Mines Mutant | -9/Materials Mutant | -9/Mines Mutant | -8/Materials Resources | -11 -10 -10 -9 -9 -8 ----------- Run | Yrd Mat Min Mat Min Mat Matter Collected 435 | 219 . . 6 49 161 Remotely . | . . . . . . Salvage Created 406 | . . . 24 22 360 Parts 32 | . . . 6 3 23 Haulers Intercepted . | . . . . . . Recyclers Shooed . | . . . . . . Parts Field Recycled . | . . . . . . Retrieved Matter . | . . . . . . Parts Self-Destructed . | . . . . . . Prevented . | . . . . . . Kills | -11 -10 -10 -9 -9 -8 ------- Run | Yrd Mat Min Mat Min Mat Combat Hostiles Destroyed 16 | . . . 4 4 8 Melee 2 | . . . . . 2 AOE 14 | . . . 4 4 6 Classes Destroyed 4 | . . . 1 . 3 Mechanic 1 | . . . . . 1 Swarmer 11 | . . . 4 4 3 Grunt 2 | . . . . . 2 Sentry 3 | . . . . . 3 Best Kill Streak 9 | . . . 4 8 9 Combat Bots Only 8 | . . . 4 8 8 Max Kills in Single Turn 4 | . . . 4 3 2 Gunslinging . | . . . . . . Exploded 4 | . . . 4 3 2 Melee 1 | . . . . . 1 Uniques/NPCs Destroyed . | . . . . . . Combat | -11 -10 -10 -9 -9 -8 -------- Run | Yrd Mat Min Mat Min Mat Hostile Shots Fired 187 | . . 3 29 5 150 Missed 70 | . . . 8 2 60 Damage Taken 1819 | . . 39 269 43 1468 Core 642 | . . . 68 23 551 Absorbed by Shields . | . . . . . . Core Remaining (%) 92 | 100 . 100 . 77 . Volleys Fired 18 | . . . 1 2 15 Largest 1 | . . . 1 1 1 Hottest 61 | . . . 30 30 61 Shots Fired 18 | . . . 1 2 15 Gun 8 | . . . . . 8 Cannon . | . . . . . . Launcher 10 | . . . 1 2 7 Special . | . . . . . . Kinetic . | . . . . . . Thermal 8 | . . . . . 8 Explosive 3 | . . . 1 2 . Electromagnetic 7 | . . . . . 7 Robot Hit Streak 7 | . . . . . 7 Robot Miss Streak 3 | . . . 1 2 3 Penetration Max . | . . . . . . Secondary Targets . | . . . . . . Shots Hit Robots 19 | . . . . . 19 Core Hits 20 | . . . 3 4 13 Critical Kills . | . . . . . . Critical Parts Destroyed . | . . . . . . Critical Strikes 2 | . . . . . 2 Burn 1 | . . . . . 1 Sever 1 | . . . . . 1 Melee Attacks 8 | . . . . . 8 Impact 2 | . . . . . 2 Slashing 6 | . . . . . 6 Piercing . | . . . . . . Sneak Attacks 1 | . . . . . 1 Combat Hostiles . | . . . . . . Follow-up Attacks . | . . . . . . Damage Inflicted 1180 | . . . 146 197 837 Guns 102 | . . . . . 102 Cannons . | . . . . . . Explosions 783 | . . . 146 197 440 Melee 295 | . . . . . 295 Ramming . | . . . . . . Kinetic . | . . . . . . Thermal 112 | . . . . . 112 Explosive 343 | . . . 146 197 . Electromagnetic 430 | . . . . . 430 Impact 38 | . . . . . 38 Slashing 257 | . . . . . 257 Piercing . | . . . . . . Highest Corruption 2 | . . . . . 2 Average Corruption 1 | . . . . . 1 Corruption Purged . | . . . . . . Corruption Blocked . | . . . . . . Overload Shots . | . . . . . . Overflow Damage 46 | . . . 8 . 38 Projectiles . | . . . . . . Explosions 19 | . . . 8 . 11 Melee 27 | . . . . . 27 Knockbacks . | . . . . . . Impact . | . . . . . . Kinetic . | . . . . . . Secondary . | . . . . . . Self-Inflicted Damage 150 | . . . 25 23 102 Shots 9 | . . . 1 1 7 Rammed . | . . . . . . Targets Rammed . | . . . . . . Kicked . | . . . . . . Crushed . | . . . . . . Highest Temperature 81 | . . . . . 81 Average Temperature 27 | . . . . . 27 Received Heat Transfer 870 | . . 21 66 . 783 Siege Activations . | . . . . . . Robots Corrupted . | . . . . . . Combat Hostiles . | . . . . . . Parts Fried . | . . . . . . Impact Corruptions 1 | . . . . . 1 Robots Melted . | . . . . . . Combat Hostiles . | . . . . . . Parts Melted . | . . . . . . Heat Transferred 383 | . . . . . 383 Parts Sabotaged . | . . . . . . Parts Stolen . | . . . . . . Parts Stripped . | . . . . . . Power Chain Reactions 2 | . . . . . 2 Alert | -11 -10 -10 -9 -9 -8 ------- Run | Yrd Mat Min Mat Min Mat Peak Influence 492 | . . 15 133 171 492 Initial 66 | . . . 5 51 66 Average 77 | . . 1 32 169 113 Maximum Alert Level 2 | . . . . . 2 Low Security (%) 94 | 100 100 100 100 100 87 Level 1 3 | . . . . . 7 Level 2 2 | . . . . . 4 Level 3 . | . . . . . . Level 4 . | . . . . . . Level 5 . | . . . . . . High Security . | . . . . . . Max Security . | . . . . . . Squads Dispatched 2 | . . . . . 2 Investigation . | . . . . . . Extermination . | . . . . . . Reinforcement 1 | . . . . . 1 Assault 1 | . . . . . 1 Garrison . | . . . . . . Intercept . | . . . . . . Searches Triggered . | . . . . . . Construction Impeded . | . . . . . . Haulers Reinforced . | . . . . . . Active Scanning Responses . | . . . . . . Cargo Convoy Interrupts . | . . . . . . Stealth | -11 -10 -10 -9 -9 -8 --------- Run | Yrd Mat Min Mat Min Mat Distress Signals 3 | . . . 2 . 1 Communications Jammed . | . . . . . . Distress Signals . | . . . . . . Times Spotted 47 | . . 2 16 3 26 Peak Tracking Total 13 | . . 2 13 3 8 Tactical Retreats 5 | . . . . . 5 Traps | -11 -10 -10 -9 -9 -8 ------- Run | Yrd Mat Min Mat Min Mat Traps Triggered 2 | . . . . . 2 Indirectly . | . . . . . . Trap Hack Attempts . | . . . . . . Triggered . | . . . . . . Disarmed 5 | . . . . . 5 Reprogrammed . | . . . . . . Reused . | . . . . . . Traps Extracted . | . . . . . . Installed . | . . . . . . Triggered . | . . . . . . Machines | -11 -10 -10 -9 -9 -8 ---------- Run | Yrd Mat Min Mat Min Mat Machines Disabled 1 | . . . . . 1 Max in Single Turn 1 | . . . . . 1 Garrison Access 1 | . . . . . 1 Machines Repaired . | . . . . . . Machines Dismantled . | . . . . . . Machines Sabotaged . | . . . . . . Overloaded Fab Kills . | . . . . . . Hacking | -11 -10 -10 -9 -9 -8 --------- Run | Yrd Mat Min Mat Min Mat Machines Accessed 4 | . . . 1 . 3 Terminals 3 | . . . . . 3 Fabricators . | . . . . . . Repair Stations . | . . . . . . Recycling Units 1 | . . . 1 . . Scanalyzers . | . . . . . . Garrison Access . | . . . . . . Total Hacks 6 | . . . 3 . 3 Successful 4 | . . . 1 . 3 Failed 2 | . . . 2 . . Catastrophic 1 | . . . 1 . . Database Lockouts . | . . . . . . Manual . | . . . . . . Terminals 3 | . . . . . 3 Fabricators . | . . . . . . Repair Stations . | . . . . . . Recycling Units 3 | . . . 3 . . Scanalyzers . | . . . . . . Garrison Access . | . . . . . . Terminal Hacks 3 | . . . . . 3 Alert Level 1 | . . . . . 1 Locate Traps 1 | . . . . . 1 Disarm Traps 1 | . . . . . 1 Fabricator Hacks . | . . . . . . Repair Station Hacks . | . . . . . . Recycling Unit Hacks 1 | . . . 1 . . Report Inventory 1 | . . . 1 . . Scanalyzer . | . . . . . . Garrison Access Hacks . | . . . . . . Unauthorized Hacks . | . . . . . . Terminals . | . . . . . . Fabricators . | . . . . . . Repair Stations . | . . . . . . Recycling Units . | . . . . . . Scanalyzers . | . . . . . . Garrison Access . | . . . . . . Data Cores Recovered . | . . . . . . Used . | . . . . . . Hacking Detections . | . . . . . . Full Trace Events . | . . . . . . Feedback Events . | . . . . . . Feedback Blocked . | . . . . . . Robot Schematics Acquired . | . . . . . . Robots Built . | . . . . . . Authchips . | . . . . . . Time . | . . . . . . Total Robot Build Rating . | . . . . . . Part Schematics Acquired . | . . . . . . Parts Built . | . . . . . . Authchips . | . . . . . . Time . | . . . . . . Total Part Build Rating . | . . . . . . Parts Repaired . | . . . . . . Time . | . . . . . . Parts Recycled . | . . . . . . Recycled Matter . | . . . . . . Retrieved Matter . | . . . . . . Retrieved Components . | . . . . . . Parts Scanalyzed . | . . . . . . Part Schematics Acquired . | . . . . . . Parts Damaged . | . . . . . . Bothacking | -11 -10 -10 -9 -9 -8 ------------ Run | Yrd Mat Min Mat Min Mat Used RIF Installer . | . . . . . . Robots Hacked . | . . . . . . Non-combat . | . . . . . . Combat . | . . . . . . Robot Hacks Applied . | . . . . . . Relay Couplers Released 2 | . . . . . 2 Machine Destruction 2 | . . . . . 2 Fabnet Peak Effective % . | . . . . . . Robots Rewired . | . . . . . . Allies Hacked . | . . . . . . Hacks Repelled . | . . . . . . Allies | -11 -10 -10 -9 -9 -8 -------- Run | Yrd Mat Min Mat Min Mat Total Allies . | . . . . . . Largest Group . | . . . . . . Highest-Rated Group . | . . . . . . Highest-Rated Ally . | . . . . . . Total Orders . | . . . . . . Ally Attacks . | . . . . . . Total Damage . | . . . . . . Kills . | . . . . . . Allies Corrupted . | . . . . . . Allies Melted . | . . . . . . Intel | -11 -10 -10 -9 -9 -8 ------- Run | Yrd Mat Min Mat Min Mat Robot Analysis Total . | . . . . . . Derelict Logs Recovered 2 | . . 2 . . . Drone Launches . | . . . . . . Drone Recoveries . | . . . . . . Exploration | -11 -10 -10 -9 -9 -8 ------------- Run | Yrd Mat Min Mat Min Mat Turns Passed 904 | 65 63 150 95 109 422 Spaces Moved 746 | 42 49 126 107 130 292 Core 22 | 11 . . . . 11 Treads . | . . . . . . Legs 321 | 31 49 126 . . 115 Wheels 403 | . . . 107 130 166 Hover . | . . . . . . Flight . | . . . . . . Fastest Speed 50 | 50 120 120 80 80 80 Average Speed 98 | 114 120 120 80 80 97 Slowest Speed 180 | 150 120 120 80 80 180 Overloaded Moves . | . . . . . . Propulsion Burnouts . | . . . . . . Robots Hopped . | . . . . . . Cave-ins Triggered . | . . . . . . Exploration Rate (%) 19 | 5 9 32 22 23 25 Regions Visited 5 Branch Regions 2 Pre-discovered Areas 2 | . . 2 . . . Known Exits Taken . | . . . . . . Unknown Exits Taken 5 | 1 1 1 1 1 . Scrap Searched 1 | . . . . 1 . Spaces Dug . | . . . . . . Terrain Destroyed 25 | . . . 8 15 2 Melee . | . . . . . . Projectile . | . . . . . . AOE 25 | . . . 8 15 2 Terrain Rammed . | . . . . . . Walls Destroyed . | . . . . . . Machines Disabled . | . . . . . . Actions | -11 -10 -10 -9 -9 -8 --------- Run | Yrd Mat Min Mat Min Mat Total 881 | 59 53 125 113 132 399 Wait 59 | . . . . . 59 Move 741 | 41 48 125 106 129 292 Hop . | . . . . . . Pick Up 26 | 12 3 . 1 1 9 Fast Attach 3 | . 1 . . . 2 Attach 15 | 6 . . 2 . 7 Detach . | . . . . . . Swap 7 | . . . 3 . 4 Drop 4 | . 1 . . . 3 Fire 18 | . . . 1 2 15 Melee 8 | . . . . . 8 Ram . | . . . . . . Kick . | . . . . . . Crush . | . . . . . . Escape Stasis . | . . . . . . Rewire . | . . . . . . Trap . | . . . . . . Miscellaneous . | . . . . . . Route ------- -11/Scrapyard -10/Materials -10/Mines -9/Materials -9/Mines -8/Materials History --------- Turn | Location | Event 13 | -11/Scrapyard | Discovered new exit (range 15) 66 | -11/Scrapyard | Entered Materials 66 | -10/Materials | Discovered new exit (range 15) 129 | -10/Materials | Entered Mines 162 | -10/Mines | Learned location of Zion (-6) 245 | -10/Mines | Discovered new exit (range 11) 279 | -10/Mines | Entered Materials 279 | -9/Materials | Evolved 2 slots: Propulsion x2 304 | -9/Materials | Build established: Mutant 364 | -9/Materials | Discovered new exit (range 13) 374 | -9/Materials | Entered Mines 397 | -9/Mines | Destroyed 8 combat bots 461 | -9/Mines | Discovered new exit (range 5) 483 | -9/Mines | Entered Materials 483 | -8/Materials | Evolved 2 slots: Power x1, Utility x1 744 | -8/Materials | Lost 8 parts (1p4n1u2w) 881 | -8/Materials | Core integrity fell below 50% 897 | -8/Materials | Core integrity fell below 20% 905 | -8/Materials | Destroyed by G-47 Trooper with Particle Gun Last Messages --------------- 00882_ G-47 Trooper misfires. 00884_ G-47 Trooper suffers critical hit (Burn). 00884_ Shock Bomb Launcher destroyed. 00884_ Critical hit (Burn: +37). 00884_ VSS Leg destroyed. 00886_ G-47 Trooper misfires. 00886_ Hacking Suite destroyed. 00886_ M-28 Smith repairs G-50 Soldier. 00888_ G-47 Trooper destroyed. 00890_ Critical hit (Burn: +37). 00890_ Sneak attack on M-28 Smith. 00890_ M-28 Smith destroyed. 00893_ Y-45 Defender IFF system glitched. 00893_ Acquired 48 matter. 00894_ Critical hit (Burn: +37). 00895_ Acquired 43 matter. 00896_ Acquired 70 matter. 00901_ Triggered Shock Trap. 00901_ The floor emits a surge of raw power. 00901_ System corrupted (+1). Map ----- +----------------------------------------------------+ | ?????????????????????????????????????? | | ?????????????????????????????????????? | | ?????????????????????????????????????? | | ?????????????????????????????????????? | | ?????????????????????????????????????? | | ?????????????????????????????????????? | | ?????????????????????????????????????? | | ?????????????????????????????????????? | | ?????????????????????????????????????? | | ?????????????????????????????????????? | | ?????????????????????????????????????? | | ?????????????????????????????????????? | | ?????????????????????????????????????? | | ?????????????????????????????????????? | | ?????????????????????????????????????? | | ?????????????????????????????????????? | | ??????????????"??????????????????????? | | ?????????????? ??????????????????????? | | ????????????##+##????????????????????? | | ???????????? #????????????????????? | | ???????????? #????????????????????? | | ???????????? a #????????????????????? | | ????????????# #????????????????????? | | ????????????# #????????????????????? | | ????????????# #????????????????????? | | ????????????#@ #????????????????????? | | ????????????# #????????????????????? | | ????????????# #????????????????????? | | ????????????# ^^#????????????????????? | | ????????????# #????????????????????? | | ??###########g #????????????????????? | | ??# [#%gY#????????????????????? | | ??# / =! = ###+######+#?????????? | | ??# |/*[ = g ????????? | | ?# %=!%=%= ????????? | | ?## "" %#!= ????????? | | ??# "" #%!!###+#######??????????? | | ??# """ " #[[ #?????????############ | | ??# # #?????????# # | | ?############ #?????????# # | | ?# ! / # #?????????# # | | ??# # #?????????# + | | ??# + #?????????# # | | ??? """ """ #####?????????# "T" # | | ??# """ """ #?????????????# """ # | | ??# """ """ #????##/################## | | ??# """ """ #??# #????# | | ??# #??# """"" """"" #????# | | ??#######+###??# """"" """"" #????# "" | | ????#### #????# """"" """"" #????# "" | +----------------------------------------------------+ Best States ------------- Heat Dissipation 31 Energy Generation 19 Energy Capacity 275 Matter Stores 300 Matter Capacity 300 Sight Range 16 Terrain Scan Density 10 Evasion (%) 58 Offensive Hacking 10 Item Schematics ----------------- None Robot Schematics ------------------ None Fabricated ------------ Nothing Alien Tech Used ----------------- None Achievements -------------- None Challenges ------------ None Game ------ Seed LightningFlakNetwork Manual? 0 Play Time 00:13:12 Cumulative 117.7 hours Start 2024.08.07 @ 23:32:24 End 2024.08.07 @ 23:51:01 Sessions 1 Manual Loads 0 Difficulty Rogue Special Mode None Game No. 166 Rogue 166 Adventurer 0 Explorer 0 Win Type - Total 0 Types 0/0/0/0/0/0/0/0/0 Lore% 30 Gallery% 55 Achievement% 38 Wizard Run 0 Options --------- Layout 0 ASCII 0 Keyboard 0 Movement Mouse Keybinds 0 Fullscreen 1 Font 24/Smallcaps Map View 76x50 Zoom Use 0% Tactical HUD 1 Map Filters NONE Filters NONE Steam 1 RUN: 1159f8a9-0306-4b7e-8f46-1bf17728ac65